bitfinex/quotes_BTCUSD_20260221
["timestamp","ask_amount","ask_price","bid_price","bid_amount"]
[1771691858636,0.07310386,68396.0,68390.0,0.000549]
[1771691858866,0.26770459,68399.0,68380.0,0.29231583]
[1771691859071,0.0731134,68387.0,68380.0,0.17602]
[1771691859315,0.09678538,68388.0,68380.0,0.24914057]
[1771691859494,0.02367291,68388.0,68381.0,0.07311958]
[1771691859927,0.02367291,68388.0,68382.0,0.07311861]
[1771691860490,0.02367291,68388.0,68381.0,0.07311962]
[1771691860674,0.02367291,68388.0,68380.0,0.24914057]
[1771691860876,0.02367291,68388.0,68381.0,0.07311876]
[1771691861086,0.09678557,68388.0,68380.0,0.17602]
[1771691861295,0.02367291,68388.0,68376.0,0.07312423]
[1771691861495,0.02367291,68384.0,68376.0,0.07312423]
[1771691861713,0.02367291,68384.0,68370.0,0.00016]
[1771691861714,0.02367291,68384.0,68379.0,0.07312185]
[1771691861862,0.02367291,68384.0,68378.0,0.07312272]
[1771691863115,0.02367291,68384.0,68380.0,0.00022]
[1771691864177,0.02367291,68384.0,68370.0,0.07329042]
[1771691864383,0.02367291,68384.0,68370.0,0.00016]
[1771691864579,0.02282341,68380.0,68373.0,0.07312824]
[1771691864823,0.02367291,68384.0,68370.0,0.00016]
[1771691864987,0.0731197,68382.0,68374.0,0.07312688]
[1771691865193,0.09679069,68383.0,68375.0,0.07312607]
[1771691865556,0.09679069,68383.0,68375.0,0.07312601]
[1771691866354,0.07311868,68382.0,68374.0,0.07312688]
[1771691867623,0.07311868,68382.0,68372.0,0.07312898]
[1771691868088,0.07311868,68382.0,68374.0,0.07312621]
[1771691868296,0.0967907,68383.0,68374.0,0.07312621]
[1771691868504,0.0967907,68383.0,68370.0,0.00016]
[1771691868505,0.02367291,68383.0,68376.0,0.07312411]
[1771691869110,0.02367291,68383.0,68377.0,0.07312324]
[1771691869661,0.07311569,68385.0,68377.0,0.07312324]
[1771691870629,0.00016,68390.0,68386.0,0.07311345]
[1771691870806,0.00016,68390.0,68384.0,0.07311561]
[1771691871007,0.00016,68390.0,68383.0,0.07311561]
[1771691871209,0.00016,68390.0,68384.0,0.07311651]
[1771691872613,0.00016,68390.0,68385.0,0.07311499]
[1771691873022,0.00016,68390.0,68384.0,0.07311614]
[1771691873228,0.00016,68390.0,68383.0,0.07311697]
[1771691873428,0.00016,68390.0,68384.0,0.07311651]
[1771691873771,0.00016,68390.0,68385.0,0.07311499]
[1771691873916,0.00016,68390.0,68384.0,0.07311651]
[1771691874115,0.00016,68390.0,68382.0,0.07311799]
[1771691874518,0.00016,68390.0,68384.0,0.07311597]
[1771691874721,0.00016,68390.0,68386.0,0.07311398]
[1771691875358,0.00016,68390.0,68384.0,0.07311608]
[1771691875559,0.00016,68390.0,68385.0,0.07311544]
[1771691877527,0.00016,68390.0,68386.0,0.07311417]
[1771691877720,0.00016,68390.0,68388.0,0.07311155]
[1771691877848,0.17564,68394.0,68387.0,0.07311255]
[1771691878048,0.07310949,68391.0,68380.0,0.02358822]
[1771691878253,0.07310949,68391.0,68381.0,0.07311893]
[1771691878254,0.07311039,68390.0,68381.0,0.07311893]
[1771691878453,0.07310949,68391.0,68381.0,0.07311893]
[1771691878759,0.07310949,68391.0,68383.0,0.07311725]
[1771691880609,0.0002,68390.0,68380.0,0.00016]
[1771691880851,0.07311297,68388.0,68380.0,0.00016]
[1771691881020,0.07311297,68388.0,68380.0,0.07328065]
[1771691882201,0.07311117,68389.0,68381.0,0.07311947]
[1771691882407,0.02387291,68390.0,68380.0,0.00016]
[1771691882574,0.02387291,68390.0,68383.0,0.07311705]
[1771691883021,0.09698333,68390.0,68382.0,0.07311774]
[1771691883351,0.07311125,68389.0,68382.0,0.07311774]
[1771691883678,0.09698333,68390.0,68382.0,0.07311774]
[1771691887403,0.09698333,68390.0,68382.0,0.18941357]
[1771691888136,0.0002,68390.0,68383.0,0.07311742]
[1771691888340,0.0002,68390.0,68383.0,0.18941325]
[1771691888516,0.0002,68390.0,68383.0,0.11629583]
[1771691888693,0.07311196,68389.0,68383.0,0.11629583]
[1771691888896,0.0002,68390.0,68382.0,0.11629583]
[1771691889138,0.07311117,68389.0,68382.0,0.11629583]
[1771691889304,0.07311117,68389.0,68383.0,0.11629583]
[1771691890641,0.07311117,68389.0,68381.0,0.07311934]
[1771691890817,0.09624861,68388.0,68380.0,0.07327878]
[1771691891028,0.09624917,68388.0,68380.0,0.07327878]
[1771691892343,0.07311332,68387.0,68380.0,0.07327878]
[1771691892650,0.07312475,68377.0,68374.0,0.17538892]
[1771691892827,0.07311865,68382.0,68367.0,0.02263684]
[1771691893144,0.02282341,68380.0,68373.0,0.07312752]
[1771691893365,0.07312046,68381.0,68373.0,0.07312752]
[1771691893559,0.09625455,68383.0,68375.0,0.07312592]
[1771691893764,0.07311885,68382.0,68375.0,0.07324264]
[1771691894126,0.07311885,68382.0,68375.0,0.00011672]
[1771691896090,0.07311885,68382.0,68375.0,0.07324285]
[1771691896415,0.07311885,68382.0,68380.0,0.00022]
[1771691896819,0.07311885,68382.0,68375.0,0.07324247]
[1771691897472,0.09625229,68385.0,68377.0,0.07312365]
[1771691898081,0.02313622,68385.0,68376.0,0.07312471]
[1771691898475,0.09625206,68385.0,68377.0,0.07312355]
[1771691898683,0.09625206,68385.0,68380.0,0.001]
[1771691899098,0.09625206,68385.0,68377.0,0.07312355]
[1771691901152,0.00036,68390.0,68380.0,0.02263684]
[1771691901354,0.07310443,68396.0,68381.0,0.30132251]
[1771691901560,0.07310492,68395.0,68387.0,0.07311295]
[1771691901856,0.07310602,68394.0,68387.0,0.07311295]
[1771691902940,0.00016,68400.0,68380.0,0.00016]
[1771691903141,0.00016,68400.0,68394.0,0.07310521]
[1771691903342,0.00016,68400.0,68392.0,0.02263684]
[1771691904632,0.07326012,68400.0,68392.0,0.095744]
[1771691906045,0.00016,68400.0,68392.0,0.09574405]
[1771691906279,0.00016,68400.0,68393.0,0.07310689]
[1771691906897,0.00016,68400.0,68381.0,0.27868567]
[1771691907049,0.02282341,68391.0,68385.0,0.07311448]
[1771691907246,0.07310671,68394.0,68385.0,0.07311448]
[1771691907994,0.00016,68400.0,68390.0,0.07310937]
[1771691907995,0.0731023,68398.0,68390.0,0.07310937]
[1771691908857,0.0731023,68398.0,68385.0,0.02263684]
[1771691908858,0.16437883,68395.0,68382.0,0.02263684]
[1771691909056,0.07310125,68399.0,68391.0,0.07310838]
[1771691909478,0.18767505,68400.0,68389.0,0.07311046]
[1771691909679,0.07310152,68399.0,68390.0,0.07310911]
[1771691910023,0.07310179,68398.0,68390.0,0.07310911]
[1771691910210,0.07310067,68399.0,68391.0,0.07310903]
[1771691910412,0.07310165,68398.0,68391.0,0.07310903]
[1771691910616,0.07310165,68398.0,68390.0,0.07310911]
[1771691911112,0.07310284,68397.0,68390.0,0.07310911]
[1771691911278,0.0002,68394.0,68390.0,0.07310911]
[1771691911681,0.0002,68394.0,68385.0,0.02263684]
[1771691911886,0.0002,68394.0,68387.0,0.07311237]
[1771691912211,0.0002,68394.0,68386.0,0.07311438]
[1771691912212,0.0002,68394.0,68388.0,0.07311215]
[1771691912409,0.07310777,68393.0,68385.0,0.09575144]
[1771691912594,0.07310689,68393.0,68384.0,0.07311651]
[1771691912995,0.07330584,68394.0,68386.0,0.07311355]
[1771691913196,0.0002,68394.0,68386.0,0.07311355]
[1771691913512,0.0002,68394.0,68387.0,0.07311258]
[1771691913685,0.07330687,68394.0,68386.0,0.07311355]
[1771691913888,0.07330687,68394.0,68383.0,0.07311731]
[1771691913889,0.07310926,68391.0,68383.0,0.07311731]
[1771691914503,0.07311458,68386.0,68378.0,0.07312226]
[1771691914707,0.16453883,68390.0,68377.0,0.00022]
[1771691914913,0.16453883,68390.0,68381.0,0.07311927]
[1771691914914,0.07311117,68389.0,68381.0,0.07311927]
[1771691916400,0.16453883,68390.0,68383.0,0.07311717]
[1771691916596,0.16453883,68390.0,68382.0,0.07311841]
[1771691916597,0.07327047,68390.0,68382.0,0.07311841]
[1771691919776,0.07347047,68390.0,68382.0,0.07311841]
[1771691921381,0.07311119,68389.0,68382.0,0.07311841]
[1771691921581,0.07311119,68389.0,68381.0,0.07311916]
[1771691921946,0.07311119,68389.0,68382.0,0.07311851]
[1771691922373,0.07347047,68390.0,68382.0,0.07311851]
[1771691922733,0.16437883,68393.0,68383.0,0.09677326]
[1771691922932,0.07310953,68391.0,68383.0,0.09677326]
[1771691923181,0.07310894,68392.0,68384.0,0.07311649]
[1771691925289,0.07310905,68391.0,68384.0,0.07311649]
[1771691925500,0.0731083,68392.0,68384.0,0.07311649]
[1771691926312,0.16453883,68400.0,68384.0,0.27878561]
[1771691926529,0.07310292,68397.0,68388.0,0.0731113]
[1771691926936,0.07310072,68399.0,68391.0,0.07310896]
[1771691927192,0.07310072,68399.0,68390.0,0.07310999]
[1771691927407,0.07310169,68398.0,68390.0,0.07310999]
[1771691927559,0.07310072,68399.0,68390.0,0.07310999]
[1771691927560,0.07310266,68397.0,68390.0,0.07310999]
[1771691927962,0.07310266,68397.0,68389.0,0.07311088]
[1771691928334,0.07330266,68397.0,68389.0,0.07311088]
[1771691929447,0.07310158,68398.0,68390.0,0.07310926]
[1771691930444,0.07310158,68398.0,68390.0,0.0731101]
[1771691932436,0.07310249,68399.0,68390.0,0.0731101]
[1771691932779,0.02465773,68396.0,68385.0,0.07311498]
[1771691932975,0.0731076,68393.0,68385.0,0.07311475]
[1771691933204,0.09776533,68393.0,68385.0,0.07311475]
[1771691933412,0.07310905,68391.0,68384.0,0.07311637]
[1771691933601,0.07310814,68392.0,68383.0,0.07311716]
[1771691934038,0.07310814,68392.0,68384.0,0.07311567]
[1771691934262,0.07310814,68392.0,68384.0,0.07311651]
[1771691935260,0.07330814,68392.0,68385.0,0.0731151]
[1771691935410,0.0002,68392.0,68385.0,0.0731151]
[1771691935614,0.0002,68392.0,68386.0,0.07311347]
[1771691936302,0.07310973,68391.0,68384.0,0.07311624]
[1771691936547,0.0002,68392.0,68384.0,0.07311624]
[1771691936851,0.07330874,68392.0,68384.0,0.07311624]
[1771691938129,0.0002,68392.0,68386.0,0.07311435]
[1771691938330,0.0002,68392.0,68386.0,0.07311379]
[1771691939979,0.0002,68392.0,68387.0,0.07311255]
[1771691942407,0.0002,68392.0,68386.0,0.07311255]
[1771691942644,0.0002,68392.0,68383.0,0.07311758]
[1771691943712,0.07310976,68391.0,68383.0,0.07311659]
[1771691943918,0.02465773,68391.0,68379.0,0.29248455]
[1771691944122,0.16437883,68390.0,68379.0,0.29248455]
[1771691944500,0.16437883,68390.0,68384.0,0.07311571]
[1771691944748,0.02465773,68391.0,68384.0,0.07311571]
[1771691945379,0.02465773,68391.0,68385.0,0.07311536]
[1771691945580,0.0002,68392.0,68385.0,0.07311536]
[1771691947743,0.0002,68392.0,68387.0,0.07311325]
[1771691947979,0.0002,68392.0,68386.0,0.07311423]
[1771691951488,0.0002,68392.0,68387.0,0.07311329]
[1771691952680,0.0002,68392.0,68385.0,0.07333339]
[1771691952681,0.0002,68392.0,68386.0,0.07311419]
[1771691954146,0.0002,68392.0,68385.0,0.00022]
[1771691955086,0.0002,68392.0,68385.0,0.07333466]
[1771691956347,0.07311972,68381.0,68380.0,1e-08]
[1771691956567,0.07311972,68381.0,68370.0,0.00038]
[1771691956568,0.0238233,68381.0,68373.0,0.07334737]
[1771691956782,0.0238233,68381.0,68374.0,0.0731265]
[1771691957763,0.0238233,68381.0,68375.0,0.07346279]
[1771691959674,0.0238233,68381.0,68375.0,0.00033672]
[1771691963511,0.07311882,68382.0,68375.0,0.00033672]
[1771691963636,0.07311882,68382.0,68375.0,0.07346284]
[1771691964907,0.07311882,68382.0,68375.0,0.00033672]
[1771691965981,0.09694212,68382.0,68375.0,0.00033672]
[1771691967404,0.09694212,68382.0,68375.0,0.07346278]
[1771691970703,0.07312014,68381.0,68375.0,0.00033672]
[1771691970900,0.07311284,68388.0,68375.0,0.00033672]
[1771691971073,0.00016,68390.0,68380.0,0.02416844]
[1771691971273,0.0732702,68390.0,68382.0,0.07311824]
[1771691971440,0.07311146,68389.0,68380.0,0.09728857]
[1771691971648,0.07311305,68388.0,68380.0,0.09728857]
[1771691971846,0.00016,68390.0,68380.0,0.02416844]
[1771691972141,0.00016,68390.0,68383.0,0.07311674]
[1771691975128,0.07327013,68390.0,68383.0,0.07311674]
[1771691975279,0.07311128,68389.0,68382.0,0.07311847]
[1771691975483,0.00016,68390.0,68383.0,0.09728602]
[1771691976671,0.07327029,68390.0,68383.0,0.09728602]
[1771691976862,0.00016,68390.0,68383.0,0.09728602]
[1771691977722,0.07327029,68390.0,68383.0,0.09728602]
[1771691979065,0.00016,68390.0,68384.0,0.07311627]
[1771691979277,0.00036,68390.0,68384.0,0.07311627]
[1771691980903,0.00036,68390.0,68383.0,0.09728572]
[1771691981490,0.00036,68390.0,68384.0,0.07311627]
[1771691982474,0.0001398,68395.0,68382.0,0.02318768]
[1771691982678,0.0001398,68395.0,68388.0,0.0731117]
[1771691984091,0.0001398,68395.0,68390.0,0.09629704]
[1771691985225,0.0001398,68395.0,68390.0,0.02318768]
[1771691985391,0.0001398,68395.0,68389.0,0.07311095]
[1771691985603,0.0001398,68395.0,68390.0,0.07310989]
[1771691985804,0.0001398,68395.0,68390.0,0.0731093]
[1771691986257,0.0001398,68395.0,68389.0,0.07311079]
[1771691986449,0.0003398,68395.0,68389.0,0.07311079]
[1771691986661,0.0003398,68395.0,68390.0,0.07310927]
[1771691986837,0.0003398,68395.0,68389.0,0.07311079]
[1771691987022,0.0003398,68395.0,68390.0,0.07311001]
[1771691987226,0.0003398,68395.0,68386.0,0.07311331]
[1771691987432,0.0003398,68395.0,68393.0,0.07310682]
[1771691987651,0.0003398,68395.0,68387.0,0.02318768]
[1771691987652,0.00016,68400.0,68396.0,0.07310322]
[1771691987871,0.00016,68400.0,68395.0,0.07310459]
[1771691988069,0.00016,68400.0,68396.0,0.07310362]
[1771691988672,0.00016,68400.0,68394.0,0.07310502]
[1771691989024,0.1757798,68403.0,68397.0,0.07310167]
[1771691989227,0.07309328,68406.0,68397.0,0.07310167]
[1771691989368,0.07309217,68407.0,68399.0,0.07309953]
[1771691989569,0.07309217,68407.0,68400.0,0.07309938]
[1771691990509,0.07309173,68408.0,68400.0,0.07309938]
[1771691990861,0.0228411,68410.0,68400.0,0.00016]
[1771691991043,0.0228411,68410.0,68400.0,0.07325855]
[1771691991218,0.0232464,68410.0,68403.0,0.0730962]
[1771691992541,0.0232464,68410.0,68403.0,0.07309596]
[1771691993316,0.0234464,68410.0,68403.0,0.07309596]
[1771691994414,0.0234464,68410.0,68402.0,0.07309727]
[1771691994637,0.0234464,68410.0,68404.0,0.07309496]
[1771691995639,0.07309174,68408.0,68399.0,0.07309946]
[1771691995955,0.07309174,68408.0,68399.0,0.07348822]
[1771691996302,0.07349704,68408.0,68399.0,0.07348822]
[1771691996659,0.07309227,68407.0,68399.0,0.07348822]
[1771691996855,0.09562319,68407.0,68399.0,0.07348822]
[1771691997057,0.02253092,68405.0,68397.0,0.07310197]
[1771691997262,0.02317127,68405.0,68397.0,0.07310197]
[1771691998542,0.02317127,68405.0,68398.0,0.07310114]
[1771691998871,0.02317127,68405.0,68397.0,0.07310197]
[1771691999071,0.02317127,68405.0,68399.0,0.0731003]
[1771691999689,0.02317127,68405.0,68397.0,0.07310197]
[1771692000011,0.02317127,68405.0,68398.0,0.07310155]
[1771692000581,0.00064035,68405.0,68399.0,0.0731003]
[1771692002063,0.00064035,68405.0,68397.0,0.07332215]
[1771692002064,0.00064035,68405.0,68400.0,0.07309937]
[1771692003978,0.0232011,68410.0,68404.0,0.07309436]
[1771692003979,0.00036,68410.0,68404.0,0.07309436]
[1771692006053,0.00036,68410.0,68405.0,0.07309312]
[1771692006899,0.00036,68410.0,68404.0,0.07309491]
[1771692008544,0.07308667,68412.0,68405.0,0.02331421]
[1771692008888,0.07308667,68412.0,68404.0,0.07309491]
[1771692010573,0.0730838,68415.0,68407.0,0.07309088]
[1771692010769,0.0001539,68416.0,68409.0,0.02307879]
[1771692011063,0.00316,68420.0,68414.0,0.0730844]
[1771692011201,0.00316,68420.0,68412.0,0.07308596]
[1771692011407,0.07623836,68420.0,68412.0,0.07308596]
[1771692011607,0.07623836,68420.0,68410.0,0.09616688]
[1771692011608,0.07623836,68420.0,68411.0,0.07308559]
[1771692011805,0.07623836,68420.0,68412.0,0.07308659]
[1771692012205,0.00316,68420.0,68412.0,0.07308659]
[1771692012459,0.00316,68420.0,68413.0,0.07308502]
[1771692013155,0.00316,68420.0,68414.0,0.07308423]
[1771692013351,0.00316,68420.0,68413.0,0.07308502]
[1771692013599,0.00316,68420.0,68414.0,0.07308414]
[1771692013800,0.07623822,68420.0,68413.0,0.07308502]
[1771692014004,0.07308787,68411.0,68405.0,0.0001354]
[1771692014230,0.07308693,68412.0,68400.0,0.00038]
[1771692014375,0.07308568,68413.0,68400.0,0.07347834]
[1771692014588,0.09682424,68414.0,68405.0,0.07309389]
[1771692014796,0.07308687,68412.0,68404.0,0.07309483]
[1771692015415,0.07308995,68409.0,68402.0,0.07309525]
[1771692015576,0.0730884,68411.0,68404.0,0.00022]
[1771692016426,0.31607818,68414.0,68404.0,0.00022]
[1771692016641,0.26246264,68409.0,68396.0,0.07310289]
[1771692016894,0.0237377,68405.0,68397.0,0.07332175]
[1771692017105,0.07309372,68406.0,68397.0,0.00022]
[1771692017314,0.0237377,68403.0,68397.0,0.07310182]
[1771692017642,0.0237377,68403.0,68393.0,0.29286088]
[1771692017788,0.0237377,68403.0,68397.0,0.07310162]
[1771692018131,0.0237377,68403.0,68393.0,0.29324983]
[1771692018338,0.0237377,68403.0,68393.0,0.00082415]
[1771692018548,0.0237377,68401.0,68390.0,0.00038]
[1771692018720,0.0237377,68395.0,68387.0,0.0731131]
[1771692019287,0.09684308,68395.0,68387.0,0.0731131]
[1771692019527,0.07310538,68395.0,68387.0,0.0731131]
[1771692019752,0.0237377,68394.0,68387.0,0.0731131]
[1771692019900,0.0237377,68394.0,68381.0,0.29269066]
[1771692020101,0.0237377,68394.0,68382.0,0.29269252]
[1771692020531,0.0237377,68394.0,68385.0,0.07311544]
[1771692021090,0.0237377,68394.0,68386.0,0.07311373]
[1771692021836,0.09684388,68394.0,68386.0,0.07311373]
[1771692023330,0.09684388,68394.0,68386.0,0.07333373]
[1771692023739,0.0230011,68400.0,68382.0,0.00022]
[1771692023945,0.00016,68390.0,68370.0,0.0005952]
[1771692024153,0.07312003,68381.0,68372.0,0.07334905]
[1771692024405,0.09685874,68380.0,68372.0,0.07334905]
[1771692024775,0.0237377,68380.0,68372.0,0.07334905]
[1771692024978,0.0237377,68380.0,68373.0,0.24894813]
[1771692025436,0.09685871,68380.0,68373.0,0.17582]
[1771692025668,0.09685871,68380.0,68375.0,0.00029956]
[1771692025798,0.0237377,68380.0,68375.0,0.00029956]
[1771692026327,0.07311669,68384.0,68376.0,0.07312494]
[1771692026497,0.0237377,68385.0,68378.0,0.0731228]
[1771692026890,0.09685346,68385.0,68377.0,0.07312399]
[1771692029408,0.29245609,68387.0,68375.0,0.00029956]
[1771692029609,0.07311647,68385.0,68376.0,0.07312503]
[1771692029883,0.07311647,68385.0,68377.0,0.07312396]
[1771692030658,0.07311647,68385.0,68377.0,0.07334396]
[1771692031662,0.07311447,68386.0,68378.0,0.07312281]
[1771692031836,0.07311447,68386.0,68377.0,0.00022]
[1771692031837,0.07311447,68386.0,68377.0,0.07334385]
[1771692032439,0.001,68385.0,68377.0,0.07334385]
[1771692032666,0.07311447,68386.0,68377.0,0.07334385]
[1771692032846,0.0731163,68385.0,68377.0,0.07334385]
[1771692033301,0.07311657,68384.0,68377.0,0.00022]
[1771692034110,0.07312162,68380.0,68375.0,0.00029956]
[1771692034317,0.09685932,68380.0,68375.0,0.00029956]
[1771692034458,0.0237377,68380.0,68375.0,0.00029956]
[1771692034643,0.07312177,68381.0,68375.0,0.00029956]
[1771692038663,0.07311812,68383.0,68375.0,0.00029956]
[1771692038840,0.0731188,68382.0,68375.0,0.00029956]
[1771692039234,0.0731188,68382.0,68375.0,0.07342569]
[1771692040694,0.0731188,68382.0,68375.0,0.00029956]
[1771692040907,0.0731155,68385.0,68378.0,0.07312236]
[1771692041142,0.00016,68390.0,68378.0,0.07312236]
[1771692042509,0.07311552,68385.0,68378.0,0.07312236]
[1771692042866,0.00016,68390.0,68383.0,0.07311677]
[1771692043111,0.07311118,68389.0,68382.0,0.2811116]
[1771692043414,0.07411118,68389.0,68382.0,0.2811116]
[1771692043713,0.07411118,68389.0,68382.0,0.02432174]
[1771692044325,0.07311118,68389.0,68382.0,0.02432174]
[1771692044533,0.07311236,68388.0,68382.0,0.02432174]
[1771692044970,0.07311142,68389.0,68382.0,0.02432174]
[1771692045928,0.07310762,68393.0,68383.0,0.07311735]
[1771692046157,0.07311008,68391.0,68384.0,0.25678986]
[1771692046357,0.07311008,68391.0,68383.0,0.07311728]
[1771692046686,0.07310986,68391.0,68384.0,0.02432174]
[1771692046888,0.07310895,68392.0,68384.0,0.02432174]
[1771692047430,0.07410903,68391.0,68384.0,0.02432174]
[1771692048938,0.07310903,68391.0,68384.0,0.02432174]
[1771692050192,0.07330903,68391.0,68384.0,0.02432174]
[1771692052181,0.0733098,68391.0,68384.0,0.02432174]
[1771692052386,0.07310895,68392.0,68384.0,0.02432174]
[1771692052655,0.07310982,68391.0,68384.0,0.02432174]
[1771692054328,0.07310895,68392.0,68384.0,0.09743825]
[1771692054527,0.07330641,68394.0,68385.0,0.02432174]
[1771692054777,0.07310883,68392.0,68385.0,0.02432174]
[1771692055280,0.0002,68394.0,68387.0,0.07311319]
[1771692055511,0.00016,68400.0,68389.0,0.02432174]
[1771692056639,0.0002,68392.0,68389.0,0.02432174]
[1771692056979,0.0002,68392.0,68388.0,0.07311144]
[1771692057364,0.07310407,68396.0,68388.0,0.07311144]
[1771692060815,0.07310467,68397.0,68389.0,0.07311065]
[1771692061011,0.07310392,68396.0,68389.0,0.07311065]
[1771692061880,0.07310266,68397.0,68389.0,0.07311065]
[1771692062089,0.07310266,68397.0,68388.0,0.07311144]
[1771692062090,0.07310158,68398.0,68392.0,0.02432174]
[1771692062427,0.00016,68400.0,68392.0,0.02432174]
[1771692062625,0.1756,68408.0,68392.0,0.02432174]
[1771692062945,0.07309768,68402.0,68394.0,0.07310519]
[1771692063163,0.07309732,68402.0,68394.0,0.07310582]
[1771692063544,0.0002,68396.0,68395.0,0.07310475]
[1771692064136,0.0002,68396.0,68394.0,0.07310554]
[1771692064410,0.0002,68396.0,68394.0,0.07410554]
[1771692065435,0.0002,68396.0,68394.0,0.002]
[1771692065692,0.0002,68396.0,68394.0,0.001]
[1771692066482,0.0002,68396.0,68394.0,0.002]
[1771692066718,0.0002,68396.0,68380.0,0.00016]
[1771692066846,0.0002,68396.0,68382.0,0.07311857]
[1771692066847,0.02270316,68394.0,68382.0,0.07311857]
[1771692067046,0.07311015,68390.0,68382.0,0.07311857]
[1771692067250,0.09581331,68390.0,68382.0,0.07311857]
[1771692068807,0.02270316,68390.0,68381.0,0.07311765]
[1771692068956,0.09667156,68389.0,68381.0,0.07311765]
[1771692069595,0.09667156,68389.0,68382.0,0.0731184]
[1771692070313,0.0741112,68389.0,68384.0,0.00022]
[1771692070508,0.02485928,68388.0,68384.0,0.00022]
[1771692072743,0.02485928,68388.0,68384.0,0.00122]
[1771692072920,0.02485928,68388.0,68384.0,0.00022]
[1771692073442,0.07311023,68390.0,68384.0,0.00122]
[1771692075066,0.07311023,68390.0,68384.0,0.00022]
[1771692075470,0.07311023,68390.0,68384.0,0.00122]
[1771692076365,0.2564472,68392.0,68380.0,0.00016]
[1771692076601,9.36e-05,68401.0,68377.0,0.00022]
[1771692076602,0.07311841,68383.0,68377.0,0.00022]
[1771692076843,0.07311841,68384.0,68375.0,0.00029956]
[1771692076992,0.07311758,68383.0,68375.0,0.00029956]
[1771692077840,0.07311758,68383.0,68377.0,0.00022]
[1771692078033,0.09797769,68384.0,68377.0,0.00022]
[1771692080254,0.09897769,68384.0,68377.0,0.00022]
[1771692082454,0.09797769,68384.0,68377.0,0.00022]
[1771692082676,0.09897769,68384.0,68377.0,0.00022]
[1771692083400,0.0731176,68383.0,68377.0,0.00022]
[1771692083562,0.09897769,68384.0,68377.0,0.00022]
[1771692084200,0.02585928,68384.0,68378.0,0.07312281]
[1771692084394,0.02585928,68384.0,68379.0,0.07312186]
[1771692084772,0.02585928,68384.0,68377.0,0.07334304]
[1771692085011,0.02585928,68384.0,68377.0,0.00022]
[1771692085448,0.02485928,68384.0,68377.0,0.07334391]
[1771692085581,0.02585928,68384.0,68377.0,0.07334391]
[1771692086111,0.02485928,68384.0,68377.0,0.07334391]
[1771692086311,0.02585928,68384.0,68377.0,0.07334391]
[1771692086533,0.02485928,68384.0,68377.0,0.07334391]
[1771692086878,0.02585928,68384.0,68377.0,0.07334391]
[1771692087080,0.02485928,68384.0,68377.0,0.07334391]
[1771692088682,0.02585928,68384.0,68377.0,0.07334391]
[1771692088946,0.02485928,68384.0,68377.0,0.07334391]
[1771692089435,0.02585928,68384.0,68377.0,0.07334391]
[1771692089633,0.02485928,68384.0,68377.0,0.07334391]
[1771692090002,0.02585928,68384.0,68377.0,0.07334391]
[1771692090750,0.02605928,68384.0,68377.0,0.07334391]
[1771692091668,0.02505928,68384.0,68377.0,0.07334391]
[1771692092070,0.02605928,68384.0,68377.0,0.07334391]
[1771692096151,0.02605928,68384.0,68378.0,0.07312276]
[1771692096352,0.00016,68390.0,68380.0,0.07311986]
[1771692096578,0.00016,68390.0,68382.0,0.09705947]
[1771692096804,0.00016,68390.0,68382.0,0.02394187]
[1771692097001,0.07310656,68394.0,68384.0,0.0970574]
[1771692097195,0.07310838,68392.0,68384.0,0.0970574]
[1771692097736,0.07310838,68392.0,68384.0,0.07311553]
[1771692099627,0.07310784,68393.0,68380.0,0.33848901]
[1771692099628,0.07310789,68394.0,68386.0,0.07311433]
[1771692100893,0.07310704,68393.0,68386.0,0.07311433]
[1771692101285,0.07310704,68393.0,68385.0,0.07311526]
[1771692101735,0.07310796,68392.0,68384.0,0.07311621]
[1771692102102,0.07310905,68391.0,68384.0,0.07311621]
[1771692103052,0.0731083,68392.0,68384.0,0.07311621]
[1771692103354,0.0731083,68392.0,68384.0,0.07411621]
[1771692103535,0.0731083,68392.0,68384.0,0.07311621]
[1771692105520,0.0731083,68392.0,68384.0,0.07411621]
[1771692105716,0.0731083,68392.0,68384.0,0.07311621]
[1771692106872,0.0731083,68392.0,68384.0,0.07411621]
[1771692108020,0.0731083,68392.0,68384.0,0.07311621]
[1771692109630,0.0731083,68392.0,68384.0,0.07411621]
[1771692109850,0.0731083,68392.0,68384.0,0.07311621]
[1771692110179,0.0731083,68392.0,68383.0,0.09612848]
[1771692110402,0.07311187,68389.0,68382.0,0.00022]
[1771692110728,0.09770183,68390.0,68382.0,0.0733386]
[1771692111178,0.09770183,68390.0,68384.0,0.001]
[1771692111636,0.09770183,68390.0,68382.0,0.0733386]
[1771692112542,0.09770183,68390.0,68384.0,0.001]
[1771692112927,0.09770183,68390.0,68382.0,0.0733386]
[1771692113516,0.09770183,68390.0,68382.0,0.07319503]
[1771692114050,0.07311232,68388.0,68382.0,7.643e-05]
[1771692114265,0.09770228,68388.0,68381.0,0.07311939]
[1771692114477,0.02458996,68388.0,68381.0,0.07311939]
[1771692114871,0.02458996,68388.0,68384.0,0.001]
[1771692115376,0.02458996,68388.0,68381.0,0.07311939]
[1771692116146,0.02458996,68388.0,68384.0,0.001]
[1771692116360,0.02458996,68388.0,68381.0,0.07311939]
[1771692117815,0.02458996,68388.0,68381.0,0.07333939]
[1771692119901,0.07311143,68389.0,68381.0,0.00022]
[1771692120229,0.07331043,68390.0,68382.0,0.07311835]
[1771692122077,0.07311143,68389.0,68382.0,0.07311835]
[1771692122870,0.07311232,68388.0,68381.0,0.07333943]
[1771692123224,0.07311143,68389.0,68381.0,0.07333943]
[1771692133150,0.07311143,68389.0,68382.0,0.07311853]
[1771692133629,0.07324533,68389.0,68382.0,0.07311853]
[1771692139345,0.0002,68390.0,68381.0,0.00022]
[1771692139346,0.0002,68392.0,68384.0,0.07311639]
[1771692139552,0.07330817,68392.0,68384.0,0.07311595]
[1771692140467,0.0002,68389.0,68384.0,0.07311595]
[1771692141282,0.0002,68389.0,68384.0,0.07411595]
[1771692141708,0.0002,68389.0,68384.0,0.07311595]
[1771692142078,0.0002,68389.0,68384.0,0.07411595]
[1771692144235,0.0002,68389.0,68384.0,0.07311595]
[1771692144416,0.0002,68389.0,68384.0,0.07411595]
[1771692152351,0.0002,68389.0,68384.0,0.07311595]
[1771692153357,0.0002,68389.0,68384.0,0.07333595]
[1771692153802,0.0002,68389.0,68384.0,0.07433595]
[1771692154582,0.0002,68389.0,68384.0,0.07333595]
[1771692154758,0.0002,68389.0,68384.0,0.07433595]
[1771692155176,0.0002,68389.0,68384.0,0.07333595]
[1771692155596,0.0002,68389.0,68384.0,0.07433595]
[1771692156981,0.0002,68389.0,68384.0,0.07333595]
[1771692157415,0.0002,68389.0,68384.0,0.07433595]
[1771692157612,0.0002,68389.0,68384.0,0.07333595]
[1771692158003,0.0002,68389.0,68384.0,0.07433595]
[1771692158248,0.0002,68389.0,68384.0,0.07333595]
[1771692158517,0.0002,68389.0,68384.0,0.07433595]
[1771692158938,0.0002,68389.0,68384.0,0.07333595]